[Event "GER-ch Youth-U16 2022"]
[Site "Willingen"]
[Date "2022.06.09"]
[Round "7.12"]
[White "Bock, Marlon"]
[Black "Mimkes, Antal"]
[Result "1-0"]
[ECO "C56"]
[WhiteElo "1816"]
[BlackElo "1696"]
[Annotator "NA RC COMBH"]
[PlyCount "119"]
[EventDate "2022.06.05"]
[EventType "swiss"]
[EventRounds "9"]
[EventCountry "GER"]
[SourceTitle "playchess.com"]
[Source "ChessBase"]
[SourceQuality "1"]
[TimeControl "40/4500+30:900+30"]

1. e4 {[%emt 0:00:00]} e5 {[%emt 0:00:00]} 2. Nf3 {[%emt 0:00:00]} Nc6 {[%emt 0:00:00]} 3. Bc4 {[%emt 0:00:00]} Nf6 {[%emt 0:00:00]} 4. d4 {[%emt 0:00:00]} exd4 {[%emt 0:00:00]} 5. O-O {[%emt 0:00:00]} Nxe4 {[%emt 0:00:00]} 6. Re1 {[%emt 0:00:00]} d5 {[%emt 0:00:00]} 7. Bxd5 {[%emt 0:00:00]} Qxd5 {[%emt 0:00:00]} 8. Nc3 {[%emt 0:00:00]} Qd8 {[%emt 0:00:00]} 9. Rxe4+ {[%emt 0:00:00]} Be7 {[%emt 0:00:00]} 10. Nxd4 {[%emt 0:00:00]} O-O {[%emt 0:00:00]} 11. Bf4 {[%emt 0:00:00]} f5 {[%emt 0:12:19]} 12. Nxc6 {[%emt 0:00:00]} bxc6 {[%emt 0:01:24]} 13. Qxd8 {[%emt 0:09:27]} Bxd8 {[%emt 0:00:18]} 14. Rc4 {[%emt 0:00:37]} Rb8 {[%emt 0:01:11]} 15. b3 {[%emt 0:05:33]} Bf6 {[%emt 0:10:00]} 16. Rd1 {[%emt 0:08:55]} Bb7 {[%emt 0:07:09]} 17. Bxc7 {[%emt 0:06:05]} Rbc8 {[%emt 0:06:11]} 18. Ba5 {[%emt 0:06:15]} Rfe8 {[%emt 0:04:29]} 19. Na4 {[%emt 0:07:46]} Ba6 {[%emt 0:00:52]} 20. Rc5 {[%emt 0:02:04]} g6 {[%emt 0:03:24]} 21. Bc3 {[%emt 0:02:31]} Rcd8 {[%emt 0:05:19]} 22. Rxd8 {[%emt 0:05:22]} Rxd8 {[%emt 0:00:11]} 23. h3 {[%emt 0:00:52]} Rd1+ {[%emt 0:02:24]} 24. Kh2 {[%emt 0:00:09]} Be7 {[%emt 0:00:34]} 25. Ra5 {[%emt 0:10:16]} Be2 {[%emt 0:07:32]} 26. Be5 {[%emt 0:03:46]} a6 {[%emt 0:02:14]} 27. c4 {[%emt 0:01:01]} Re1 {[%emt 0:02:23]} 28. Bc7 {[%emt 0:02:00]} Bh4 {[%emt 0:02:34]} 29. Re5 {[%emt 0:02:16]} Bxf2 {[%emt 0:05:41]} 30. Ba5 {[%emt 0:03:57]} Bd4 {[%emt 0:00:38]} 31. Bxe1 {[%emt 0:03:55]} Bxe5+ {[%emt 0:00:30]} 32. Kg1 {[%emt 0:01:15]} Bd6 {[%emt 0:02:51]} 33. Kf2 {[%emt 0:01:00]} Bd3 {[%emt 0:00:33]} 34. Nc3 {[%emt 0:00:17]} Bc5+ {[%emt 0:00:31]} 35. Kf3 {[%emt 0:00:37]} Kf7 {[%emt 0:00:29]} 36. Bf2 {[%emt 0:00:34]} Bxf2 {[%emt 0:01:55]} 37. Kxf2 {[%emt 0:00:06]} f4 {[%emt 0:00:36]} 38. Kf3 {[%emt 0:02:01]} g5 {[%emt 0:01:21]} 39. Ne4 {[%emt 0:03:26]} Kg6 {[%emt 0:00:36]} 40. Nc5 {[%emt 0:00:41]} Bb1 {[%emt 0:00:27]} 41. Nxa6 {[%emt 0:15:57]} Bxa2 {[%emt 0:15:07]} 42. Nb4 {[%emt 0:01:02]} Bxb3 {[%emt 0:01:04]} 43. Nxc6 {[%emt 0:00:07]} Kf6 {[%emt 0:00:16]} 44. Na5 {[%emt 0:01:22]} Bc2 {[%emt 0:03:54]} 45. h4 {[%emt 0:00:00]} h6 {[%emt 0:00:00]} 46. hxg5+ {[%emt 0:00:00]} hxg5 {[%emt 0:00:00]} 47. c5 {[%emt 0:00:00]} Kf5 {[%emt 0:00:00]} 48. c6 {[%emt 0:00:00]} g4+ {[%emt 0:00:00]} 49. Kf2 {[%emt 0:00:00]} Ke6 {[%emt 0:00:00]} 50. g3 {[%emt 0:00:00]} f3 {[%emt 0:00:00]} 51. Nc4 {[%emt 0:00:00]} Be4 {[%emt 0:00:00]} 52. c7 {[%emt 0:00:00]} Kd7 {[%emt 0:00:00]} 53. c8=Q+ Kxc8 54. Nd6+ {[%emt 0:00:00]} Kd7 {[%emt 0:00:00]} 55. Nxe4 {[%emt 0:00:00]} Ke6 {[%emt 0:00:00]} 56. Ke3 {[%emt 0:00:00]} Ke5 {[%emt 0:00:00]} 57. Nf2 {[%emt 0:00:00]} Kf5 {[%emt 0:00:00]} 58. Kd4 {[%emt 0:00:00]} Kf6 {[%emt 0:00:00]} 59. Nxg4+ {[%emt 0:00:00]} Kg5 {[%emt 0:00:00]} 60. Nf2 {[%emt 0:00:00]} 1-0

[Event "GER-ch Youth-U16 2022"]
[Site "Willingen"]
[Date "2022.06.09"]
[Round "7.13"]
[White "Spriestersbach, Kai"]
[Black "Ehrig, Leon Chris"]
[Result "1/2-1/2"]
[ECO "B61"]
[WhiteElo "1948"]
[BlackElo "1890"]
[Annotator "TA"]
[PlyCount "83"]
[EventDate "2022.06.05"]
[EventType "swiss"]
[EventRounds "9"]
[EventCountry "GER"]
[SourceTitle "playchess.com"]
[Source "ChessBase"]
[SourceQuality "1"]
[TimeControl "40/4500+30:900+30"]

{[%evp 22,83,60,53,62,66,87,29,29,-47,-59,-76,-74,-78,-77,-102,-97,-103,-95,-111,-77,-140,-34,-47,22,27,46,53,41,47,47,25,20,0,0,0,0,-12,0,0,0,-66,-61,-57,-55,-58,-59,-91,-82,-87,-86,-474,-8,-9,-10,-23,-1,-8,36,35,71,71,65,39]} 1. e4 {[%emt 0:00:00]} c5 {[%emt 0:00:00]} 2. Nf3 {[%emt 0:00:00]} d6 {[%emt 0:00:00]} 3. d4 {[%emt 0:00:00]} cxd4 {[%emt 0:00:00]} 4. Nxd4 {[%emt 0:00:00]} Nf6 {[%emt 0:00:00]} 5. Nc3 {[%emt 0:00:00]} Bd7 {[%emt 0:00:00]} 6. Bg5 {[%emt 0:00:00]} Nc6 {[%emt 0:00:00]} 7. Qd2 {[%emt 0:00:00]} h6 {[%emt 0:00:00]} 8. Bxf6 {[%emt 0:00:00]} gxf6 {[%emt 0:00:00]} 9. O-O-O {[%emt 0:00:46]} Nxd4 {[%emt 0:00:00]} 10. Qxd4 {[%emt 0:00:08]} Qa5 {[%emt 0:00:00]} 11. Kb1 {[%emt 0:03:40]} Rc8 {[%emt 0:00:00]} 12. f4 {[%emt 0:04:53]} Qc5 {[%emt 0:00:00] B61: Sicilian: Richter-Rauzer: 6...Bd7 7 Qd2.} 13. Qd3 {[%emt 0:04:21]} f5 {[%emt 0:04:17] [#]} 14. e5 {[%emt 0:04:39]} (14. exf5 $1 $16 {[%cal Of5f6] Strongly threatening f6!} Bxf5 15. Qg3) 14... Bg7 $11 {[%emt 0:02:03] White has an edge.} 15. Qg3 {[%emt 0:18:33]} (15. Be2 $11) 15... O-O $15 {[%emt 0:19:32] [#]} 16. Rd5 $146 {[%emt 0:02:28]} ({Predecessor:} 16. Bb5 Be6 17. Rhe1 dxe5 18. fxe5 Rfd8 19. Rxd8+ Rxd8 20. Bd3 b5 21. Bxb5 Rb8 22. Ba4 {1-0 (63) Bodnaruk,A (2412)-Savina,A (2325) Sochi 2012}) 16... Qb6 {[%emt 0:03:10]} 17. Be2 {[%emt 0:01:32]} a6 {[%emt 0:05:13]} 18. Re1 {[%emt 0:05:01]} Be6 {[%emt 0:05:10] aiming for ...Rxc3.} 19. Rd3 {[%emt 0:00:39]} dxe5 {[%emt 0:07:48]} 20. fxe5 {[%emt 0:00:16]} Qa5 {[%emt 0:00:30]} 21. Bf3 {[%emt 0:01:11] [#]} (21. a3 $142) 21... Rc5 {[%emt 0:18:41]} (21... Rxc3 $1 $17 {[%mdl 512]} 22. bxc3 (22. Rxc3 $2 Qxa2+ 23. Kc1 Qa1+ 24. Kd2 Qxb2 $19) 22... Bc4) 22. a3 {[%emt 0:02:59]} ({Not} 22. Bxb7 $2 Rb8 23. Bd5 Bxd5 $19) 22... Rc4 {[%emt 0:12:21]} (22... Rd8 $15 23. Rxd8+ (23. Bxb7 $2 Rb8 $19) 23... Qxd8) 23. Nd5 $11 {[%emt 0:03:00]} ({Don't blunder} 23. Bxb7 $2 Rb8 24. Qf3 Qb6 $19) 23... Bxd5 {[%emt 0:00:48]} 24. Bxd5 {[%emt 0:02:05]} Rg4 {[%emt 0:00:17]} 25. Qe3 {[%emt 0:02:56]} e6 $1 {[%emt 0:01:26]} 26. Bf3 {[%emt 0:00:40]} Rc4 {[%emt 0:00:48]} 27. Re2 {[%emt 0:01:02]} b5 {[%emt 0:02:49]} 28. c3 {[%emt 0:08:18] Against b4} Qc7 $1 {[%emt 0:00:19] Against Rd7} 29. Rd4 {[%emt 0:01:01]} Rc5 {[%emt 0:00:29][%cal Rc5e5]} 30. Qd2 {[%emt 0:00:58]} Rxe5 {[%emt 0:00:38]} 31. Rd7 {[%emt 0:02:34]} ({Better is} 31. Rxe5 $11 Qxe5 32. h3) 31... Rxe2 $15 {[%emt 0:00:11]} 32. Bxe2 {[%emt 0:00:04]} Qxh2 {[%emt 0:00:29]} 33. Bf3 {[%emt 0:00:27]} e5 {[%emt 0:00:27][%cal Be6e5,Be5e4][%mdl 32]} 34. Bd5 {[%emt 0:01:31]} e4 {[%emt 0:01:22]} 35. Qf2 {[%emt 0:02:56]} Qe5 {[%emt 0:00:38]} 36. g4 $2 {[%emt 0:01:19][%mdl 8192]} (36. Qa7 $17 Qf6 37. Qc5) 36... f4 $2 {[%emt 0:00:36]} (36... e3 $19 37. Qe2 fxg4) 37. Qa7 $11 {[%emt 0:00:59][%csl LRa6,LRf7][%cal Rd7f7]} Qf6 {[%emt 0:03:20] Hoping for ...f3.} 38. Bxe4 {[%emt 0:00:26]} f3 {[%emt 0:00:09] White must now prevent ...f2.} 39. Qf2 $1 {[%emt 0:00:35]} Qe6 {[%emt 0:00:38]} (39... h5 $5 {[%cal Rh5g4]} 40. Qxf3 Qxf3 41. Bxf3 h4 $11) 40. Bf5 {[%emt 0:00:24]} Qb3 {[%emt 0:00:45]} 41. Qxf3 {[%emt 0:20:01]} Re8 {[%emt 0:00:00] Prevents Qe2. ( -> ...Re1+)} 42. Qd1 {[%emt 0:00:00] Prevents Re1.  Weighted Error Value: White=0.39/Black=0.40} (42. Bc2 $5 {[%cal Rc2b3]} Re1+ 43. Rd1 Rxd1+ 44. Qxd1 $14) 1/2-1/2

[Event "GER-ch Youth-U16 2022"]
[Site "Willingen"]
[Date "2022.06.09"]
[Round "7.14"]
[White "Beyer, Lorenz"]
[Black "Tovmasyan, Minas"]
[Result "1/2-1/2"]
[ECO "A45"]
[WhiteElo "1512"]
[BlackElo "1933"]
[Annotator "TA"]
[PlyCount "80"]
[EventDate "2022.06.05"]
[EventType "swiss"]
[EventRounds "9"]
[EventCountry "GER"]
[SourceTitle "playchess.com"]
[Source "ChessBase"]
[SourceQuality "1"]
[TimeControl "40/4500+30:900+30"]

{[%evp 9,80,-10,0,-2,1,-11,-10,-15,-4,-10,0,-6,-8,-10,-7,-6,-1,-18,0,-24,-16,-22,0,0,0,-65,-65,-65,-66,-52,-59,-99,-98,-114,0,0,29,29,25,41,42,43,129,126,118,139,137,139,191,189,189,185,195,200,281,281,270,246,246,204,191,130,147,0,166,155,173,176,154,0,60,0,140]} 1. d4 {[%emt 0:00:00]} Nf6 {[%emt 0:00:00]} 2. Bf4 {[%emt 0:00:00]} d5 {[%emt 0:00:00]} 3. e3 {[%emt 0:00:00]} c5 {[%emt 0:00:00]} 4. c3 {[%emt 0:00:00]} Qb6 {[%emt 0:00:00]} 5. b3 {[%emt 0:00:00]} Nc6 {[%emt 0:00:00] ...cxd4 is the strong threat.} 6. Nf3 {[%emt 0:00:00] D00: 1 d4 d5: Unusual lines.} Bg4 {[%emt 0:00:00]} 7. Be2 {[%emt 0:00:00]} e6 {[%emt 0:00:00]} 8. O-O {[%emt 0:00:00]} Be7 {[%emt 0:00:00]} 9. h3 {[%emt 0:00:04]} Bh5 {[%emt 0:00:00]} 10. Ne5 {[%emt 0:02:55]} Bxe2 {[%emt 0:00:00]} 11. Qxe2 {[%emt 0:00:06]} O-O {[%emt 0:00:00][%cal Rc5d4]} 12. Nd2 {[%emt 0:03:44]} Rac8 {[%emt 0:00:00][%cal Rc5d4]} 13. Ndf3 {[%emt 0:05:43] [#]} h6 $146 {[%emt 0:15:27]} ({Predecessor:} 13... cxd4 14. cxd4 Nxe5 15. Nxe5 Rc3 16. Qb2 Rfc8 17. Rac1 Qa5 18. Rxc3 Qxc3 19. Qe2 a6 {0-1 (50) Becker,G (1707)-Gypser,A (2064) Ludwigshafen 1998}) 14. g4 {[%emt 0:06:28]} Nxe5 {[%emt 0:06:45]} 15. Nxe5 {[%emt 0:01:10]} cxd4 {[%emt 0:03:42]} 16. cxd4 {[%emt 0:00:10]} Rc3 {[%emt 0:04:13]} 17. g5 {[%emt 0:05:58]} (17. Rac1 $11 Qa5 18. Rxc3 Qxc3 19. h4) 17... hxg5 $15 {[%emt 0:05:36]} 18. Bxg5 {[%emt 0:00:10]} Qc7 {[%emt 0:12:04]} (18... Rfc8 {feels hotter.} 19. Qf3 Qb5 20. Kh1 Rc2) 19. Bxf6 {[%emt 0:20:09]} Bxf6 {[%emt 0:00:49]} 20. Ng4 {[%emt 0:04:06]} Be7 {[%emt 0:06:24]} 21. Kh1 {[%emt 0:06:01]} f5 {[%emt 0:12:07]} (21... g6 $17 22. Rad1 Bd6) 22. Ne5 $11 {[%emt 0:00:19]} Rf6 {[%emt 0:04:53] Against Ng6} 23. Qh5 {[%emt 0:09:46] [#] Strongly threatening Rg1.} Rh6 {[%emt 0:00:21]} 24. Qf7+ {[%emt 0:00:31]} Kh7 {[%emt 0:00:12]} 25. Rg1 $36 {[%emt 0:03:48][%csl Gg1][%cal Rf7g7][%mdl 2048] White has some pressure.} Bf6 {[%emt 0:03:17]} (25... Rxh3+ $14 26. Kg2 Rh6) 26. Qxe6 $16 {[%emt 0:01:36] White is much more active.} Bxe5 {[%emt 0:09:03]} 27. Qxf5+ {[%emt 0:00:28]} ({Much less strong is} 27. Qxe5 $6 f4 28. Qf5+ (28. Qxf4 Qxf4 29. exf4 Rf3 $11) (28. Qxd5 Qc8 $17) 28... g6 $14) 27... g6 {[%emt 0:00:33]} 28. Qxe5 {[%emt 0:01:31]} Qd7 {[%emt 0:00:55]} (28... Qxe5 $16 29. dxe5 Rc2) 29. Rg3 $18 {[%emt 0:00:36]} Rh5 {[%emt 0:01:25]} 30. Qf4 {[%emt 0:01:04]} Rxh3+ {[%emt 0:00:55] [#]} 31. Kg2 $1 {[%emt 0:00:17]} Rxg3+ {[%emt 0:00:33]} (31... Rh5 $142 32. Rh1 (32. Qf6 Rc6 $16) 32... Rxh1 33. Kxh1 Qf5) 32. Qxg3 {[%emt 0:00:16][%mdl 4096] Endgame KQR-KQR} ({Don't play} 32. Kxg3 $6 Qc7 33. Qxc7+ Rxc7 $16) 32... Qf5 {[%emt 0:00:37]} 33. Rh1+ {[%emt 0:01:12]} Kg7 {[%emt 0:00:01]} 34. Rh4 {[%emt 0:00:20] Prevents Qe4+. Hoping for Qd6.} Rc1 {[%emt 0:01:12]} 35. Rg4 {[%emt 0:02:58]} (35. Qe5+ $18 Qxe5 36. dxe5) 35... Qh5 {[%emt 0:00:32][%csl Gc1][%cal Rh5h1]} 36. Rh4 {[%emt 0:03:52] Inhibits Qh1+.} Qf5 {[%emt 0:00:01]} 37. Qh2 {[%emt 0:03:13]} Qg5+ {[%emt 0:01:00]} 38. Kf3 {[%emt 0:00:44] Black must now prevent Rh7+.} Qf5+ {[%emt 0:00:51]} 39. Kg2 {[%emt 0:03:51]} (39. Qf4 $16) 39... Qg5+ $14 {[%emt 0:00:06]} 40. Kf3 {[%emt 0:01:25]} (40. Kh3 $1 $14) 40... Qf5+ {[%emt 0:00:07] Weighted Error Value: White=0.26 (precise) /Black=0.14 (very precise)} 1/2-1/2

[Event "GER-ch Youth-U16 2022"]
[Site "Willingen"]
[Date "2022.06.09"]
[Round "7.15"]
[White "Guo, Philipp Ziming"]
[Black "Hecht, Jonas Christian"]
[Result "0-1"]
[ECO "C68"]
[WhiteElo "1825"]
[BlackElo "1884"]
[Annotator "NA RC COMBH"]
[PlyCount "106"]
[EventDate "2022.06.05"]
[EventType "swiss"]
[EventRounds "9"]
[EventCountry "GER"]
[SourceTitle "playchess.com"]
[Source "ChessBase"]
[SourceQuality "1"]
[TimeControl "40/4500+30:900+30"]

1. e4 {[%emt 0:00:00]} e5 {[%emt 0:00:00]} 2. Nf3 {[%emt 0:00:00]} Nc6 {[%emt 0:00:00]} 3. Bb5 {[%emt 0:00:00]} a6 {[%emt 0:00:00]} 4. Bxc6 {[%emt 0:00:00]} dxc6 {[%emt 0:00:00]} 5. O-O {[%emt 0:00:00]} Bd6 {[%emt 0:00:00]} 6. d4 {[%emt 0:00:00]} Bg4 {[%emt 0:05:56]} 7. dxe5 {[%emt 0:00:00]} Bxf3 {[%emt 0:02:34]} 8. Qxf3 {[%emt 0:00:00]} Bxe5 {[%emt 0:00:06]} 9. Nd2 {[%emt 0:00:00]} Qf6 {[%emt 0:04:57]} 10. Nc4 {[%emt 0:00:00]} Qxf3 {[%emt 0:01:46]} 11. gxf3 {[%emt 0:00:00]} Bd4 {[%emt 0:03:18]} 12. c3 {[%emt 0:00:00]} Bc5 {[%emt 0:03:04]} 13. Rd1 {[%emt 0:00:00]} b5 {[%emt 0:01:28]} 14. Na5 {[%emt 0:08:17]} Ne7 {[%emt 0:00:22]} 15. Nb7 {[%emt 0:01:57]} Bb6 {[%emt 0:00:40]} 16. Be3 {[%emt 0:00:54]} O-O {[%emt 0:06:17]} 17. Nc5 {[%emt 0:27:59]} Rfe8 {[%emt 0:13:58]} 18. Rd2 {[%emt 0:14:58]} Ng6 {[%emt 0:00:51]} 19. Kg2 {[%emt 0:02:59]} f5 {[%emt 0:05:05]} 20. Rad1 {[%emt 0:04:51]} f4 {[%emt 0:00:45]} 21. Bd4 {[%emt 0:00:46]} Nh4+ {[%emt 0:00:08]} 22. Kh3 {[%emt 0:00:55]} Nxf3 {[%emt 0:01:11]} 23. Rd3 {[%emt 0:06:10]} Ne5 {[%emt 0:17:15]} 24. Bxe5 {[%emt 0:00:05]} Rxe5 {[%emt 0:00:11]} 25. Nd7 {[%emt 0:01:50]} Rxe4 {[%emt 0:00:42]} 26. Nxb6 {[%emt 0:00:18]} cxb6 {[%emt 0:00:04]} 27. Rd7 {[%emt 0:00:52]} Rae8 {[%emt 0:00:52]} 28. Rb7 {[%emt 0:02:07]} R8e7 {[%emt 0:00:14]} 29. Rxb6 {[%emt 0:00:57]} Re2 {[%emt 0:00:24]} 30. Kg2 {[%emt 0:05:37]} Rxb2 {[%emt 0:00:31]} 31. Rxa6 {[%emt 0:00:06]} Ree2 {[%emt 0:01:59]} 32. Rd8+ {[%emt 0:05:11]} Kf7 {[%emt 0:00:09]} 33. Rd7+ {[%emt 0:00:49]} Ke6 {[%emt 0:00:50]} 34. Rd1 {[%emt 0:01:16]} Rxf2+ {[%emt 0:00:06]} 35. Kg1 {[%emt 0:00:09]} Rg2+ {[%emt 0:00:14]} 36. Kf1 {[%emt 0:00:26]} Rbf2+ {[%emt 0:02:08]} 37. Ke1 {[%emt 0:00:10]} Rxh2 {[%emt 0:00:16]} 38. Rxc6+ {[%emt 0:00:11]} Kf5 {[%emt 0:00:08]} 39. Rc5+ {[%emt 0:00:58]} Kg4 {[%emt 0:00:07]} 40. Rc7 {[%emt 0:02:04]} g5 {[%emt 0:02:56]} 41. Rxh7 {[%emt 0:16:05]} Rxh7 {[%emt 0:15:13]} 42. Kxf2 {[%emt 0:00:03]} Rh2+ {[%emt 0:00:06]} 43. Kg1 {[%emt 0:00:04]} Rxa2 {[%emt 0:00:05]} 44. Rd5 {[%emt 0:00:38]} Rc2 {[%emt 0:00:19]} 45. Rxb5 {[%emt 0:00:22]} Rxc3 {[%emt 0:00:12]} 46. Ra5 {[%emt 0:00:36]} Rc2 {[%emt 0:00:22]} 47. Rb5 {[%emt 0:00:12]} f3 {[%emt 0:01:09]} 48. Ra5 {[%emt 0:00:22]} Kh4 {[%emt 0:01:03]} 49. Kh1 {[%emt 0:02:23]} g4 {[%emt 0:00:41]} 50. Ra1 {[%emt 0:00:30]} Kg3 {[%emt 0:00:20]} 51. Rg1+ {[%emt 0:00:12]} Kh3 {[%emt 0:00:22]} 52. Rf1 {[%emt 0:00:16]} Rh2+ {[%emt 0:00:09]} 53. Kg1 {[%emt 0:00:07]} f2+ {[%emt 0:00:09]} 0-1

[Event "GER-ch Youth-U16 2022"]
[Site "Willingen"]
[Date "2022.06.09"]
[Round "7.16"]
[White "Gluma, Christian"]
[Black "Weidenhoefer, Max"]
[Result "1-0"]
[ECO "B01"]
[WhiteElo "2012"]
[BlackElo "1945"]
[Annotator "TA"]
[PlyCount "73"]
[EventDate "2022.06.05"]
[EventType "swiss"]
[EventRounds "9"]
[EventCountry "GER"]
[SourceTitle "playchess.com"]
[Source "ChessBase"]
[SourceQuality "1"]
[TimeControl "40/4500+30:900+30"]

{[%evp 10,73,45,51,53,47,55,24,34,26,37,35,36,33,37,31,33,12,13,7,65,53,89,41,36,53,47,45,50,24,95,88,216,213,199,213,245,237,243,224,349,335,458,458,551,551,563,572,585,580,636,634,629,623,614,602,718,733,756,754,743,735,722,727,724,701]} 1. e4 {[%emt 0:00:00]} d5 {[%emt 0:00:00]} 2. exd5 {[%emt 0:00:00]} Qxd5 {[%emt 0:00:00]} 3. Nc3 {[%emt 0:00:00]} Qd6 {[%emt 0:00:00]} 4. d4 {[%emt 0:00:00]} Nf6 {[%emt 0:00:00]} 5. Nf3 {[%emt 0:00:00][%cal Bg1f3,Bf3e5,Be5c4][%mdl 32]} c6 {[%emt 0:00:00]} 6. Ne5 {[%emt 0:00:00]} Nbd7 {[%emt 0:00:00] B01: Scandinavian Defence.} 7. Nc4 {[%emt 0:00:00]} Qc7 {[%emt 0:00:00]} 8. Qf3 {[%emt 0:00:00]} Nb6 {[%emt 0:00:00] White has an edge.} 9. Bf4 {[%emt 0:00:00]} Qd7 {[%emt 0:00:00]} 10. O-O-O {[%emt 0:00:00][%cal Od4d5] [#] Strongly threatening d5!} Qg4 {[%emt 0:00:00]} 11. Qxg4 {[%emt 0:00:00]} Bxg4 {[%emt 0:00:00]} 12. f3 {[%emt 0:03:00]} Bf5 {[%emt 0:00:00]} 13. Nxb6 {[%emt 0:04:53]} axb6 {[%emt 0:00:00]} 14. d5 {[%emt 0:04:29] [#]} g6 $146 {[%emt 0:00:00]} (14... Bd7 $1 $11) ({Predecessor:} 14... Bd7 15. Bc4 b5 16. Bb3 b4 17. dxc6 Bxc6 18. Ne2 e6 19. Nd4 Ba4 20. Kb1 Bxb3 21. Nxb3 {½-½ (41) Persson,C (2578)-Stephan,J (2550) ICCF email 2010}) 15. Bc4 {[%emt 0:09:13] And now Rhe1 would win.} h5 {[%emt 0:20:00]} 16. Kb1 {[%emt 0:19:07] White is more active.} (16. Rhe1 $16) 16... Nd7 $14 {[%emt 0:09:44]} 17. Rhe1 $36 {[%emt 0:07:50][%mdl 2048] Black is under pressure.} b5 {[%emt 0:10:36] Against a4} 18. Bf1 {[%emt 0:08:54][%cal Bc4f1,Bf1d3,Bd3f5][%mdl 32]} Bg7 {[%emt 0:13:11]} 19. Ne2 {[%emt 0:08:39]} e5 {[%emt 0:13:55]} (19... O-O-O $11 {remains equal.}) 20. Nd4 $16 {[%emt 0:06:08]} Rc8 {[%emt 0:06:49] This move loses the game for Black.} (20... O-O-O $16 21. Nxf5 (21. dxc6 bxc6 22. Nxf5 gxf5 $16) 21... gxf5) 21. Nxf5 $18 {[%emt 0:03:52]} gxf5 {[%emt 0:00:01]} 22. Bd3 {[%emt 0:01:03]} O-O {[%emt 0:01:27]} 23. Bg5 {[%emt 0:03:45]} Nb6 {[%emt 0:04:11]} 24. Bxf5 {[%emt 0:01:49]} Rb8 {[%emt 0:00:21]} (24... Nxd5 {keeps fighting.} 25. Bxc8 Rxc8) 25. d6 {[%emt 0:01:21][%cal Bd5d6,Bd6d7][%mdl 32]} f6 {[%emt 0:00:34]} 26. Be3 {[%emt 0:00:32] White is clearly winning.} Nc4 27. Be6+ {[%emt 0:01:25] A strong pair of Bishops.} Kh8 {[%emt 0:00:48]} 28. Bxc4 {[%emt 0:00:18]} bxc4 {[%emt 0:00:01]} 29. d7 {[%emt 0:00:36]} Rfd8 {[%emt 0:02:30]} 30. Bb6 {[%emt 0:00:30]} Kg8 {[%emt 0:00:07]} 31. Bxd8 {[%emt 0:00:32]} Rxd8 {[%emt 0:00:01][%mdl 4096] Endgame KRR-KRB} 32. Re4 {[%emt 0:00:49]} b5 {[%emt 0:00:27]} 33. Rh4 {[%emt 0:00:26]} Kf7 {[%emt 0:00:17]} 34. Rxh5 {[%emt 0:00:30]} Ke6 {[%emt 0:00:27]} 35. Rh7 {[%emt 0:00:48]} Bf8 {[%emt 0:00:29]} 36. Rh8 {[%emt 0:00:17][%cal Oh8f8] [#] Hoping for Rxf8!} Ke7 {[%emt 0:00:10]} 37. h4 {[%emt 0:00:34] Weighted Error Value: White=0.07 (flawless) /Black=0.34} 1-0